bitfinex/quotes_BTCUSD_20251011
["timestamp","ask_amount","ask_price","bid_price","bid_amount"]
[1760189490295,5.77253783,112540.0,112530.0,0.00545038]
[1760189490497,5.78160222,112540.0,112530.0,0.00545038]
[1760189491584,5.78260222,112540.0,112530.0,0.00545038]
[1760189492282,5.80632991,112540.0,112530.0,0.00545038]
[1760189492477,5.81178029,112540.0,112530.0,0.00545038]
[1760189493246,5.81164744,112540.0,112530.0,0.00545038]
[1760189494083,5.78792659,112540.0,112530.0,0.00545038]
[1760189494278,5.78792659,112540.0,112530.0,1e-08]
[1760189494919,5.78692659,112540.0,112530.0,1e-08]
[1760189495111,5.8151508,112540.0,112530.0,1e-08]
[1760189495308,5.8171508,112540.0,112530.0,1e-08]
[1760189495532,5.84812223,112540.0,112530.0,1e-08]
[1760189496078,0.57288227,112530.0,112520.0,1e-08]
[1760189496206,5.74927539,112530.0,112520.0,5.041e-05]
[1760189496407,5.86536648,112530.0,112520.0,5.041e-05]
[1760189496820,5.76536649,112530.0,112520.0,5.041e-05]
[1760189497039,5.86536648,112530.0,112520.0,5.041e-05]
[1760189497254,0.57292966,112500.0,112490.0,0.0004]
[1760189497454,0.60849931,112500.0,112490.0,0.00090428]
[1760189497784,0.63672352,112500.0,112490.0,0.00090428]
[1760189497961,0.64712352,112500.0,112490.0,0.00090428]
[1760189498158,0.67084586,112500.0,112490.0,0.00090428]
[1760189498360,0.7487799,112500.0,112490.0,0.00090428]
[1760189498691,0.7497799,112500.0,112490.0,0.00090428]
[1760189498850,0.7507799,112500.0,112490.0,0.00090428]
[1760189499052,5.8007799,112500.0,112490.0,0.00090428]
[1760189499935,5.83240969,112500.0,112490.0,0.00090428]
[1760189500135,5.85560086,112500.0,112490.0,0.00090428]
[1760189500411,5.85460086,112500.0,112490.0,0.00090428]
[1760189500642,5.85449425,112500.0,112490.0,0.00090428]
[1760189500855,5.85449425,112500.0,112480.0,0.0104]
[1760189500856,5.62294547,112490.0,112480.0,0.0104]
[1760189501028,5.70309468,112490.0,112480.0,0.01055098]
[1760189501250,5.71098461,112490.0,112480.0,0.01055098]
[1760189501695,5.78891865,112490.0,112480.0,0.01055098]
[1760189502097,5.78891865,112490.0,112480.0,0.01343599]
[1760189502273,5.83636334,112490.0,112480.0,0.01343599]
[1760189502479,5.83736334,112490.0,112480.0,0.01343599]
[1760189503316,5.83936334,112490.0,112480.0,0.01343599]
[1760189503759,5.77097234,112490.0,112480.0,0.01343599]
[1760189503967,5.69178061,112490.0,112480.0,0.01343599]
[1760189504192,5.66803831,112490.0,112480.0,0.01343599]
[1760189504362,5.6930383,112490.0,112480.0,0.01343599]
[1760189504592,5.66803831,112490.0,112480.0,0.01343599]
[1760189504788,5.6900383,112490.0,112480.0,0.01343599]
[1760189505107,5.6920383,112490.0,112480.0,0.01343599]
[1760189505321,5.715483,112490.0,112480.0,0.01343599]
[1760189505529,0.664483,112490.0,112480.0,0.01343599]
[1760189505734,5.6920383,112490.0,112480.0,0.01343599]
[1760189505937,5.73707741,112490.0,112480.0,0.00274757]
[1760189506139,5.68963272,112490.0,112480.0,0.00274757]
[1760189506344,5.68763272,112490.0,112480.0,0.00274757]
[1760189506634,5.68863272,112490.0,112480.0,0.00274757]
[1760189507055,5.71860415,112490.0,112480.0,0.00274757]
[1760189507261,5.78249902,112490.0,112480.0,0.00274757]
[1760189507403,0.65089531,112480.0,112460.0,0.01246043]
[1760189507602,5.84316274,112480.0,112460.0,0.01246043]
[1760189508534,5.82729817,112480.0,112460.0,0.01246043]
[1760189508738,5.82829817,112480.0,112460.0,0.01246043]
[1760189509213,5.87590692,112480.0,112460.0,0.01246043]
[1760189509826,5.87690692,112480.0,112460.0,0.01246043]
[1760189511642,5.84516274,112480.0,112460.0,0.01246043]
[1760189511982,5.84416274,112480.0,112460.0,0.01246043]
[1760189512384,5.84516274,112480.0,112460.0,0.01246043]
[1760189512587,5.84416274,112480.0,112460.0,0.01246043]
[1760189512822,5.84616274,112480.0,112460.0,0.01246043]
[1760189513026,5.85845616,112480.0,112470.0,0.00097718]
[1760189513643,5.79926052,112480.0,112470.0,0.00097718]
[1760189514065,5.85545616,112480.0,112470.0,0.00097718]
[1760189514211,0.57297708,112470.0,112460.0,0.01246043]
[1760189514425,5.76223044,112470.0,112460.0,0.01251087]
[1760189515701,5.76423044,112470.0,112460.0,0.01251087]
[1760189515906,5.76423044,112470.0,112460.0,0.00182025]
[1760189516772,0.20802454,112440.0,112430.0,0.00048]
[1760189516981,0.28370654,112440.0,112430.0,0.00048]
[1760189517179,0.30753596,112440.0,112430.0,0.00048]
[1760189517638,5.69753596,112440.0,112430.0,0.00048]
[1760189517798,5.85004868,112440.0,112430.0,0.00048]
[1760189518129,5.81827611,112440.0,112430.0,0.00048]
[1760189518304,5.81927611,112440.0,112430.0,0.00048]
[1760189518527,5.81827611,112440.0,112430.0,0.00048]
[1760189518707,5.85556952,112440.0,112430.0,0.00048]
[1760189518906,5.80891067,112440.0,112430.0,0.00048]
[1760189519161,5.80991067,112440.0,112430.0,0.00048]
[1760189519543,5.80891067,112440.0,112430.0,0.00048]
[1760189519748,5.85656555,112440.0,112430.0,0.00048]
[1760189519932,5.86113509,112440.0,112430.0,0.00048]
[1760189520134,5.81348021,112440.0,112430.0,0.00278964]
[1760189521309,5.87737508,112440.0,112430.0,0.00278964]
[1760189521918,5.68828364,112420.0,112410.0,0.0004]
[1760189522124,5.79639939,112420.0,112410.0,0.00045041]
[1760189522327,5.85562178,112420.0,112410.0,0.00045041]
[1760189523456,5.88736671,112420.0,112410.0,0.00045041]
[1760189523647,5.88936671,112420.0,112410.0,0.00045041]
[1760189524192,5.89136222,112420.0,112410.0,0.00045041]
[1760189526745,5.85962178,112420.0,112410.0,0.00045041]
[1760189527534,5.85962178,112420.0,112410.0,0.00160565]
[1760189528237,5.86319198,112420.0,112410.0,0.00160565]
[1760189529586,5.89493193,112420.0,112410.0,0.00160565]
[1760189531599,5.89958377,112420.0,112410.0,0.00160565]
[1760189532225,5.8685142,112420.0,112410.0,0.00160565]
[1760189533198,5.89904908,112420.0,112410.0,0.00160565]
[1760189534166,5.86730913,112420.0,112410.0,0.00160565]
[1760189534995,5.86730913,112420.0,112410.0,1e-08]
[1760189535201,5.6817283,112410.0,112400.0,0.0004]
[1760189535393,5.76482458,112410.0,112400.0,0.00045047]
[1760189535637,5.7807283,112410.0,112400.0,0.00045047]
[1760189535970,5.79468039,112410.0,112400.0,0.00045047]
[1760189536825,5.79668039,112410.0,112400.0,0.00045047]
[1760189537232,5.71331529,112400.0,112390.0,0.0004]
[1760189537440,5.83709202,112400.0,112390.0,0.00090409]
[1760189537640,5.85504359,112400.0,112390.0,0.00090409]
[1760189538561,5.85604359,112400.0,112390.0,0.00090409]
[1760189538743,5.85804359,112400.0,112390.0,0.00090409]
[1760189541297,5.85804359,112400.0,112390.0,0.00205963]
[1760189542169,5.85804359,112400.0,112380.0,0.00780675]
[1760189542170,5.60673821,112390.0,112380.0,0.00780675]
[1760189542477,5.68715734,112390.0,112380.0,0.00780675]
[1760189542650,5.78135081,112390.0,112380.0,7.978e-05]
[1760189542856,5.7506943,112390.0,112380.0,7.978e-05]
[1760189543501,5.75734773,112390.0,112380.0,7.978e-05]
[1760189543703,5.78800424,112390.0,112380.0,7.978e-05]
[1760189543903,5.59815118,112360.0,112350.0,0.00090069]
[1760189544111,0.17809439,112300.0,112290.0,0.09269362]
[1760189544382,0.54407657,112300.0,112290.0,0.07202362]
[1760189544609,0.54407657,112300.0,112290.0,0.16813362]
[1760189544610,0.36598218,112300.0,112290.0,0.16813362]
[1760189545026,0.36598218,112300.0,112290.0,0.05101]
[1760189545164,0.54407657,112300.0,112290.0,0.0004]
[1760189545365,0.54407657,112300.0,112290.0,0.00045035]
[1760189545771,5.28749069,112300.0,112290.0,0.00045035]
[1760189545972,5.33720443,112300.0,112290.0,0.00045035]
[1760189546189,5.33720443,112300.0,112280.0,0.00280748]
[1760189546511,5.33720443,112300.0,112250.0,0.0038]
[1760189546512,5.22815784,112260.0,112250.0,0.0038]
[1760189546694,5.25572662,112260.0,112250.0,0.00395153]
[1760189546908,5.25572662,112260.0,112210.0,0.09229362]
[1760189547125,5.06187614,112220.0,112210.0,0.00050531]
[1760189547332,0.01187614,112220.0,112210.0,0.00050531]
[1760189547738,0.19009749,112220.0,112210.0,0.00050531]
[1760189547934,0.20657744,112220.0,112210.0,0.00050531]
[1760189548137,5.228265,112200.0,112180.0,0.01076066]
[1760189548336,0.19193203,112190.0,112180.0,0.01091206]
[1760189548879,0.01366303,112190.0,112180.0,0.06152206]
[1760189549083,0.01366303,112190.0,112180.0,0.01091206]
[1760189549317,0.19293213,112190.0,112180.0,0.01091206]
[1760189549522,0.35366303,112190.0,112180.0,0.01091206]
[1760189549669,0.53193203,112190.0,112180.0,0.01091206]
[1760189550090,5.61208393,112190.0,112180.0,0.01091206]
[1760189550292,0.56208393,112190.0,112180.0,0.04085206]
[1760189550495,0.22208393,112190.0,112180.0,0.10702206]
[1760189551080,0.18715315,112210.0,112180.0,0.10702206]
[1760189551390,0.0301519,112210.0,112200.0,0.02067]
[1760189551624,0.01203794,112210.0,112200.0,0.09611]
[1760189551862,0.18712928,112250.0,112200.0,0.62327248]
[1760189551863,0.07793404,112250.0,112200.0,0.62327248]
[1760189551985,0.08684272,112250.0,112240.0,0.02067]
[1760189552184,0.07793404,112250.0,112240.0,0.09611]
[1760189552519,0.00464563,112260.0,112240.0,0.09611]
[1760189552721,0.00464563,112260.0,112250.0,0.06617]
[1760189553135,0.00514784,112260.0,112250.0,0.09611]
[1760189553455,0.00050221,112260.0,112250.0,0.02067]
[1760189553893,0.18756983,112260.0,112210.0,0.2587691]
[1760189554119,0.02024991,112260.0,112230.0,0.18711399]
[1760189554325,0.00050221,112260.0,112220.0,0.18713223]
[1760189554532,0.00050221,112260.0,112230.0,0.18711497]
[1760189554736,0.00050221,112260.0,112240.0,0.00704333]
[1760189554893,0.00050221,112260.0,112240.0,0.17818915]
[1760189555698,0.00050221,112260.0,112250.0,0.17817371]
[1760189555913,0.00050221,112260.0,112240.0,0.17818915]
[1760189556082,0.00050221,112260.0,112230.0,0.18711497]
[1760189556292,0.00050221,112260.0,112240.0,0.17818955]
[1760189556488,0.00050221,112260.0,112220.0,0.09999999]
[1760189556687,5.0510001,112250.0,112220.0,0.17821763]
[1760189556889,0.18810034,112240.0,112200.0,0.18709402]
[1760189557158,0.18810034,112240.0,112190.0,0.25880288]
[1760189557159,0.3410001,112230.0,112190.0,0.25880288]
[1760189557285,0.0010001,112220.0,112200.0,0.17825298]
[1760189557654,0.34,112230.0,112190.0,0.18717926]
[1760189557782,0.0010001,112220.0,112190.0,0.18717926]
[1760189558218,0.0010001,112220.0,112180.0,0.18827201]
[1760189558412,5.05,112210.0,112180.0,0.0101514]
[1760189558620,0.0010001,112200.0,112180.0,0.0101514]
[1760189558822,0.0010001,112210.0,112180.0,0.0101514]
[1760189559039,0.44177552,112230.0,112190.0,0.198751]
[1760189559260,0.0010001,112220.0,112190.0,0.198751]
[1760189559493,0.18715022,112210.0,112180.0,0.0101514]
[1760189559724,0.0010001,112200.0,112180.0,0.1884355]
[1760189559957,0.15846634,112250.0,112200.0,0.00891265]
[1760189560179,0.15846634,112250.0,112190.0,0.18718245]
[1760189560180,0.55825338,112240.0,112190.0,0.18718245]
[1760189560417,0.25874025,112230.0,112190.0,0.18718245]
[1760189560651,0.0010001,112220.0,112190.0,0.18718245]
[1760189560880,0.54834225,112240.0,112200.0,0.18716559]
[1760189561084,0.0010001,112230.0,112200.0,0.18716565]
[1760189561295,0.0010001,112230.0,112190.0,0.18718245]
[1760189561498,0.0010001,112230.0,112200.0,0.18716557]
[1760189562176,0.0010001,112230.0,112210.0,0.17822627]
[1760189562396,0.0010001,112230.0,112200.0,0.18716557]
[1760189562598,0.17920591,112230.0,112190.0,0.18718245]
[1760189562803,0.17820581,112230.0,112190.0,0.18718245]
[1760189563055,0.0010001,112220.0,112190.0,0.18718245]
[1760189563281,0.25614853,112280.0,112220.0,0.1871324]
[1760189563480,0.02323847,112280.0,112240.0,0.17817599]
[1760189563692,0.187033,112280.0,112250.0,0.00673342]
[1760189563857,0.17816281,112260.0,112220.0,0.27585174]
[1760189564057,0.34,112270.0,112240.0,0.17818778]
[1760189564518,0.17864582,112270.0,112230.0,0.18711395]
[1760189564863,0.00050251,112270.0,112240.0,0.1781883]
[1760189565044,0.17964502,112270.0,112240.0,0.18709777]
[1760189565249,0.51864492,112270.0,112230.0,0.18711395]
[1760189566412,0.0010001,112260.0,112230.0,0.18711395]
[1760189566735,0.1870827,112250.0,112200.0,0.18709564]
[1760189566936,0.13384049,112260.0,112210.0,0.18714849]
[1760189567135,0.17817402,112250.0,112210.0,0.18714849]
[1760189567507,0.13384049,112260.0,112220.0,0.19603277]
[1760189567719,0.00890789,112260.0,112220.0,0.00891106]
[1760189567916,5.22815939,112260.0,112220.0,0.18713098]
[1760189568120,5.56818761,112250.0,112200.0,0.34]
[1760189568322,0.17819117,112240.0,112200.0,0.51825297]
[1760189568541,0.17820576,112230.0,112190.0,0.18711055]
[1760189568717,0.18711603,112230.0,112190.0,0.17826797]
[1760189568954,0.18709956,112240.0,112200.0,0.17825275]
[1760189569157,0.18709956,112240.0,112200.0,0.1871654]
[1760189569315,5.05,112240.0,112210.0,0.18698956]
[1760189569511,0.17819193,112240.0,112200.0,0.1871654]
[1760189569771,0.17822219,112220.0,112200.0,0.0001514]
[1760189569974,0.51823723,112210.0,112200.0,0.0001514]
[1760189570175,0.34,112210.0,112200.0,0.0001514]
[1760189570373,0.17822219,112220.0,112200.0,0.0001514]
[1760189570691,0.01644476,112220.0,112210.0,0.01041746]
[1760189570872,5.22822135,112220.0,112210.0,0.01041746]
[1760189571215,5.22821342,112230.0,112210.0,0.01041746]
[1760189571424,0.01646802,112230.0,112210.0,0.17823674]
[1760189571637,0.18710156,112240.0,112200.0,0.18731051]
[1760189571804,0.1782228,112220.0,112200.0,0.0001514]
[1760189572009,0.17822222,112220.0,112200.0,0.0001514]
[1760189572211,0.17822222,112220.0,112200.0,0.00842824]
[1760189572412,0.17822393,112220.0,112200.0,0.0001514]
[1760189572612,0.01649393,112220.0,112200.0,0.0001514]
[1760189572817,0.5436119,112230.0,112200.0,0.0001514]
[1760189573019,0.17822138,112220.0,112200.0,0.0001514]
[1760189573221,0.01652243,112220.0,112200.0,0.00836567]
[1760189573376,0.35652243,112230.0,112200.0,0.18661668]
[1760189573582,0.53472993,112230.0,112200.0,0.17840222]
[1760189573782,0.17822186,112220.0,112200.0,0.0001514]
[1760189574026,0.17823723,112210.0,112200.0,0.0001514]
[1760189574340,0.19475966,112210.0,112200.0,0.0001514]
[1760189574482,0.01652243,112210.0,112200.0,0.0001514]
[1760189574684,5.22823723,112210.0,112200.0,0.0001514]
[1760189575026,0.19475966,112210.0,112200.0,0.0001514]
[1760189575382,5.58475966,112210.0,112200.0,0.0001514]
[1760189575636,5.60381075,112210.0,112200.0,0.0001514]
[1760189575848,0.55381075,112210.0,112200.0,0.0001514]
[1760189576056,0.34557352,112210.0,112200.0,0.0001514]
[1760189576260,0.19727295,112220.0,112200.0,0.0001514]
[1760189576455,0.31904628,112230.0,112200.0,0.0001514]
[1760189576456,0.01905109,112230.0,112200.0,0.0001514]
[1760189576683,0.13361798,112240.0,112220.0,0.00983784]
[1760189576893,0.18711706,112230.0,112200.0,0.0001514]
[1760189577031,5.05,112230.0,112200.0,0.18731679]
[1760189577242,0.13361798,112240.0,112200.0,0.18731679]
[1760189577468,0.17817431,112250.0,112220.0,0.17821635]
[1760189577669,0.20200546,112260.0,112230.0,0.00955538]
[1760189577869,0.17817383,112250.0,112230.0,0.00955538]
[1760189578070,0.17817423,112250.0,112210.0,0.18714688]
[1760189578328,0.18708291,112250.0,112210.0,0.18714688]
[1760189579119,0.18708291,112250.0,112210.0,0.21007688]
[1760189579487,0.18711402,112240.0,112210.0,0.02293]
[1760189579687,0.17820776,112230.0,112210.0,0.01214]
[1760189579890,0.18711402,112240.0,112210.0,0.01214]
[1760189580083,0.1782065,112230.0,112210.0,0.01214]
[1760189580287,0.18711677,112230.0,112200.0,0.0122914]
[1760189580590,0.54618346,112240.0,112210.0,0.01214]
[1760189580854,0.35907854,112240.0,112220.0,0.01472423]
[1760189581009,0.34,112240.0,112230.0,0.01214]
[1760189581917,0.51818959,112240.0,112220.0,0.01214]
[1760189582250,0.53726813,112240.0,112230.0,0.00925831]
[1760189583224,0.35907854,112240.0,112230.0,0.00925831]
[1760189583423,0.01907854,112250.0,112230.0,0.02872257]
[1760189583648,0.20200745,112260.0,112230.0,0.22059786]
[1760189583877,0.20198826,112270.0,112240.0,0.0194636]
[1760189584102,0.20198826,112270.0,112250.0,0.01214]
[1760189584308,0.05563267,112280.0,112250.0,0.19031138]
[1760189584465,0.03274808,112290.0,112250.0,0.22215006]
[1760189584632,0.17812711,112280.0,112260.0,0.01995453]
[1760189584865,0.02384257,112290.0,112260.0,0.22994382]
[1760189585216,0.00050251,112290.0,112270.0,0.03507]
[1760189585633,0.00050251,112290.0,112270.0,0.01214]
[1760189585634,0.17861529,112290.0,112270.0,0.01214]
[1760189585827,0.51861287,112290.0,112270.0,0.01214]
[1760189586125,0.51861287,112290.0,112260.0,0.01214]
[1760189586126,0.17812611,112280.0,112260.0,0.01214]
[1760189586567,0.18703241,112280.0,112250.0,0.01214]
[1760189586744,0.51814326,112270.0,112250.0,0.01214]
[1760189586922,0.00890868,112250.0,112220.0,0.02499999]
[1760189587089,0.18711574,112230.0,112200.0,0.01214]
[1760189587304,0.17820623,112230.0,112210.0,0.01214]
[1760189587490,0.17820623,112230.0,112200.0,0.10669362]
[1760189587491,0.1871165,112230.0,112200.0,0.08376362]
[1760189587900,0.34,112230.0,112200.0,0.26201632]
[1760189588104,0.35656888,112230.0,112210.0,0.01214]
[1760189588306,0.17823567,112220.0,112200.0,0.0122914]
[1760189588535,0.19479149,112220.0,112200.0,0.0122914]
[1760189588742,0.19479112,112220.0,112200.0,0.0122914]
[1760189589205,0.01656851,112220.0,112200.0,0.0122914]
[1760189589538,0.39948962,112230.0,112200.0,0.22238323]
[1760189589685,0.01656851,112230.0,112220.0,0.01214]
[1760189589883,5.23711732,112230.0,112200.0,0.0122914]
[1760189590106,0.03564994,112230.0,112200.0,0.19053921]
[1760189590309,0.5700206,112240.0,112210.0,0.01214]
[1760189590486,0.58659403,112240.0,112210.0,0.01214]
[1760189590662,0.37564927,112240.0,112220.0,0.01214]
[1760189590863,0.37564927,112240.0,112210.0,0.01214]
[1760189590864,0.51819045,112240.0,112210.0,0.01214]
[1760189591226,0.53726899,112240.0,112210.0,0.1903757]
[1760189591584,0.53726899,112240.0,112220.0,0.01214]
[1760189591585,0.35907854,112240.0,112220.0,0.01214]
[1760189591785,0.01907854,112250.0,112230.0,0.01214]
[1760189591991,0.01657465,112260.0,112230.0,0.2132736]
[1760189592178,0.24979733,112250.0,112220.0,0.01214]
[1760189592421,0.56998792,112260.0,112230.0,0.01214]
[1760189592628,0.57765551,112260.0,112240.0,0.01214]
[1760189592832,0.5865634,112260.0,112230.0,0.01214]
[1760189593040,0.17817394,112250.0,112220.0,0.19927128]
[1760189593239,0.00033942,112240.0,112230.0,0.17820547]
[1760189593438,0.00033942,112240.0,112230.0,0.19034547]
[1760189593869,0.00033942,112240.0,112230.0,0.21342687]
[1760189595221,0.00033942,112240.0,112230.0,0.25469669]
[1760189595648,0.00033942,112240.0,112230.0,0.59469669]
[1760189595851,0.00033942,112240.0,112230.0,0.55342687]
[1760189597303,0.01907854,112280.0,112260.0,0.17815784]
[1760189597504,0.02384257,112300.0,112280.0,0.17812611]
[1760189597709,0.07162362,112310.0,112280.0,0.05127381]
[1760189597886,5.05,112300.0,112270.0,0.17814197]
[1760189598208,0.18702992,112290.0,112250.0,0.53030515]
[1760189598341,0.18702992,112290.0,112250.0,0.17816515]
[1760189598548,0.18702992,112290.0,112250.0,0.19921383]
[1760189598743,0.18753243,112290.0,112250.0,0.19921383]
[1760189599253,0.17812634,112280.0,112250.0,0.19921383]
[1760189599646,0.18753243,112290.0,112250.0,0.19921383]
[1760189600077,0.00050251,112290.0,112260.0,0.04419835]
[1760189600314,0.00050251,112290.0,112270.0,0.01214]
[1760189600517,0.00050251,112290.0,112280.0,0.17812611]
[1760189600724,0.00050251,112290.0,112280.0,0.01214]
[1760189600920,0.00050251,112290.0,112280.0,0.20075342]
[1760189601156,0.00050251,112290.0,112280.0,0.21319611]
[1760189601468,0.00050251,112290.0,112280.0,0.19026611]
[1760189602300,0.00050251,112290.0,112280.0,0.21319611]
[1760189602738,0.00050251,112290.0,112280.0,0.99412692]
[1760189603881,0.00050251,112290.0,112280.0,0.21319611]
[1760189604084,0.00050251,112290.0,112280.0,0.99412692]
[1760189604442,0.00050251,112290.0,112280.0,1.08284626]
[1760189604667,0.00050251,112290.0,112280.0,0.99412692]
[1760189605030,0.00050251,112290.0,112280.0,1.33412692]
[1760189605672,0.00050251,112290.0,112280.0,1.38927881]
[1760189606031,0.00050251,112290.0,112280.0,1.39564106]
[1760189609571,0.00050251,112290.0,112280.0,1.29818132]
[1760189609981,0.00050251,112290.0,112280.0,1.38690066]
[1760189610547,0.00050251,112290.0,112280.0,1.24302943]
[1760189610746,0.00050251,112290.0,112280.0,0.65955835]
[1760189610974,0.00050251,112290.0,112280.0,0.00636225]
[1760189611189,0.02260251,112290.0,112280.0,0.00636225]
[1760189611950,0.00050251,112290.0,112280.0,0.00636225]
[1760189612338,0.02260251,112290.0,112280.0,0.00636225]
[1760189612684,0.00050251,112290.0,112280.0,0.00636225]
[1760189612886,0.00050251,112290.0,112280.0,0.02880225]
[1760189613474,0.02260251,112290.0,112280.0,0.00636225]
[1760189613676,0.02260251,112290.0,112280.0,0.24999836]
[1760189613677,0.00050251,112290.0,112280.0,0.24999836]
[1760189613890,0.00050251,112290.0,112280.0,0.02880225]
[1760189614093,0.00050251,112290.0,112280.0,0.18448836]
[1760189614329,0.00050251,112290.0,112280.0,0.20692836]
[1760189615894,0.00050251,112290.0,112280.0,0.24999836]
[1760189616097,0.00050251,112290.0,112280.0,0.83346944]
[1760189617368,0.00050251,112290.0,112280.0,0.83289162]
[1760189618369,0.00050251,112290.0,112280.0,0.20635054]
[1760189618811,0.00050251,112290.0,112280.0,0.00578443]
[1760189619468,0.00050251,112290.0,112280.0,0.83289162]
[1760189619673,0.00050251,112290.0,112280.0,0.92161096]
[1760189619811,0.00050251,112290.0,112280.0,0.20635054]
[1760189619997,0.00050251,112290.0,112280.0,0.18391054]
[1760189620438,0.00050251,112290.0,112280.0,0.00578443]
[1760189620638,0.00050251,112290.0,112280.0,0.20635054]
[1760189621152,0.00050251,112290.0,112280.0,0.33813988]
[1760189621301,0.00050251,112290.0,112280.0,0.83289162]
[1760189622024,0.00050251,112290.0,112280.0,0.20635054]
[1760189622221,0.00050251,112290.0,112280.0,0.18391054]
[1760189623465,0.00050251,112290.0,112280.0,0.20442054]
[1760189624254,0.00050251,112290.0,112280.0,0.00578443]
[1760189624645,0.00050251,112290.0,112280.0,0.18391054]
[1760189624983,0.00050251,112290.0,112280.0,0.20442054]
[1760189625181,0.00050251,112290.0,112280.0,0.24813054]
[1760189625406,0.00050251,112290.0,112280.0,0.20442054]
[1760189625613,0.00050251,112290.0,112280.0,0.83160162]
[1760189626567,0.00050251,112290.0,112280.0,0.20442054]
[1760189626917,0.00050251,112290.0,112280.0,0.18391054]
[1760189627119,0.00050251,112290.0,112280.0,0.20442054]
[1760189627350,0.00050251,112290.0,112280.0,0.24813054]
[1760189627756,0.00050251,112290.0,112280.0,0.83160162]
[1760189628134,0.00050251,112290.0,112280.0,0.24813054]
[1760189628480,0.00050251,112290.0,112280.0,0.20442054]
[1760189628685,0.04948251,112290.0,112280.0,0.18391054]
[1760189629022,0.02843251,112290.0,112280.0,0.18391054]
[1760189629505,0.02843251,112290.0,112280.0,0.23406054]
[1760189629506,0.00050251,112290.0,112280.0,0.23406054]
[1760189629655,0.02843251,112290.0,112280.0,0.18391054]
[1760189629858,0.04948251,112290.0,112280.0,0.00578443]
[1760189630133,0.03448576,112290.0,112280.0,0.19455869]
[1760189630288,0.02843251,112290.0,112280.0,0.18391054]
[1760189630475,0.00050251,112290.0,112280.0,0.27777054]
[1760189630878,0.00050251,112290.0,112280.0,0.23406054]
[1760189631974,0.02843251,112290.0,112280.0,0.20442054]
[1760189632178,0.00050251,112290.0,112280.0,0.23406054]
[1760189633082,0.00050251,112290.0,112280.0,0.18391054]
[1760189633083,0.02843251,112290.0,112280.0,0.18391054]
[1760189633266,0.04903251,112290.0,112280.0,0.00578443]
[1760189633674,0.00050251,112290.0,112280.0,0.24343977]
[1760189633889,0.02843251,112290.0,112280.0,0.20442054]
[1760189634095,0.02843251,112290.0,112280.0,0.23406054]
[1760189634296,0.00050251,112290.0,112280.0,0.27777054]
[1760189636326,0.00050251,112290.0,112280.0,0.23406054]
[1760189636857,0.02758251,112290.0,112280.0,0.20442054]
[1760189637260,0.02758251,112290.0,112280.0,0.00578443]
[1760189637471,0.00050251,112290.0,112280.0,0.23751086]
[1760189637716,0.00050251,112290.0,112280.0,0.23273054]
[1760189637917,0.04818251,112290.0,112280.0,0.18391054]
[1760189638119,0.04818251,112290.0,112280.0,0.00578443]
[1760189638463,0.58291375,112290.0,112280.0,0.00578443]
[1760189638653,0.6019385,112290.0,112280.0,0.00578443]
[1760189639239,0.62578107,112290.0,112280.0,0.00578443]
[1760189639443,0.65757117,112290.0,112280.0,0.00578443]
[1760189639870,0.62578107,112290.0,112280.0,0.00578443]
[1760189640266,0.44767082,112290.0,112280.0,0.00578443]
[1760189640470,0.60675632,112290.0,112280.0,0.00578443]
[1760189640678,0.62578107,112290.0,112280.0,0.00578443]
[1760189641098,0.44767082,112290.0,112280.0,0.00578443]
[1760189641263,0.60675632,112290.0,112280.0,0.00578443]
[1760189641462,0.62578107,112290.0,112280.0,0.00578443]
[1760189642293,0.40322825,112290.0,112280.0,0.00578443]
[1760189642513,0.3842035,112290.0,112280.0,0.21072054]
[1760189642717,0.00050251,112290.0,112280.0,0.27528054]
[1760189643553,0.00050251,112290.0,112280.0,0.85875162]
[1760189643957,0.00050251,112290.0,112280.0,0.88890352]
[1760189644168,0.00050251,112290.0,112280.0,1.00262285]
[1760189645256,0.00050251,112290.0,112280.0,1.34262285]
[1760189645645,0.00050251,112290.0,112280.0,1.44262284]
[1760189645780,0.00050251,112290.0,112280.0,1.34262285]
[1760189645988,0.00050251,112290.0,112280.0,1.44262284]
[1760189647246,0.00050251,112290.0,112280.0,0.85915176]
[1760189647483,0.00050251,112290.0,112280.0,0.61528054]
[1760189648772,0.00050251,112290.0,112280.0,1.19875162]
[1760189649201,0.00050251,112290.0,112280.0,1.22375161]
[1760189649634,0.00050251,112290.0,112280.0,1.25390351]
[1760189649909,0.00050251,112290.0,112280.0,1.34262285]
[1760189650120,0.00050251,112290.0,112280.0,1.31247095]
[1760189650598,0.00050251,112290.0,112280.0,0.61528054]
[1760189650725,0.00050251,112290.0,112280.0,1.19875162]
[1760189652817,0.00050251,112290.0,112280.0,1.22375161]
[1760189653022,0.00050251,112290.0,112280.0,1.25390351]
[1760189653455,0.00050251,112290.0,112280.0,0.27528054]
[1760189656279,0.00050251,112290.0,112280.0,0.34629418]
[1760189656852,0.00050251,112290.0,112280.0,0.27528054]
[1760189657061,0.00050251,112290.0,112280.0,0.23273054]
[1760189657263,0.00050251,112290.0,112280.0,0.27528054]
[1760189658460,0.01155251,112290.0,112280.0,0.23273054]
[1760189659107,0.00050251,112290.0,112280.0,0.23273054]
[1760189659453,0.01155251,112290.0,112280.0,0.23273054]
[1760189660078,0.03863251,112290.0,112280.0,0.18391054]
[1760189660347,0.04455576,112290.0,112280.0,0.18391054]
[1760189660773,0.01155251,112290.0,112280.0,0.23273054]
[1760189661175,0.00050251,112290.0,112280.0,0.27528054]
[1760189661825,0.00050251,112290.0,112280.0,0.85875162]
[1760189663075,0.00050251,112290.0,112280.0,0.88890352]
[1760189663315,0.00050251,112290.0,112280.0,1.25390351]
[1760189663522,0.00050251,112290.0,112280.0,1.34262285]
[1760189663748,0.01,112330.0,112320.0,0.17806267]
[1760189663992,0.01,112330.0,112320.0,0.20007267]
[1760189663993,0.01015072,112330.0,112320.0,0.20007267]
[1760189664236,0.01015072,112330.0,112320.0,0.85290375]
[1760189665996,0.01015072,112330.0,112320.0,0.26943267]
[1760189666192,0.01015072,112330.0,112320.0,0.35815201]
[1760189668110,0.01015072,112330.0,112320.0,0.26943267]
[1760189669300,0.01015072,112330.0,112320.0,0.27290223]
[1760189669628,0.01015072,112330.0,112320.0,0.85637331]
[1760189670361,0.01015072,112330.0,112320.0,0.9115252]
[1760189671398,0.01015072,112330.0,112320.0,0.32805412]
[1760189671582,0.01015072,112330.0,112320.0,1.15883344]
[1760189671996,0.01015072,112330.0,112320.0,0.38086838]
[1760189672153,0.01015072,112330.0,112320.0,1.15883344]
[1760189672558,0.01015072,112330.0,112320.0,1.49883344]
[1760189674583,0.01015072,112330.0,112320.0,0.72086838]
[1760189674795,0.01015072,112330.0,112320.0,0.66805412]
[1760189674979,0.01015072,112330.0,112320.0,1.44601918]
[1760189675542,0.01015072,112330.0,112320.0,1.39086729]
[1760189677100,0.01015072,112330.0,112320.0,0.61290223]
[1760189677303,0.01015072,112330.0,112320.0,1.42101919]
[1760189677508,0.01015072,112330.0,112320.0,1.53473852]
[1760189678313,0.01015072,112330.0,112320.0,1.50458662]
[1760189678516,0.01015072,112330.0,112320.0,1.39086729]